Cogmind - Beta 9.4 *** ADVENTURER MODE // 2020.01.19 @ 16:10:52 Player: Plexion Result: Self-destructed Performance ------------- Evolutions (2) 1000 Regions Visited (5) 1000 Robots Destroyed (44) 220 Value Destroyed (1066) 1066 Prototype IDs (0) 0 Alien Tech Used (0) 0 Bonus (143) 143 TOTAL SCORE: 3429 Bonus ------- Follower Combat Kills 143 Cogmind --------- Core Integrity 331/550 Matter 300/300 Energy 160/160 System Corruption 0% Temperature Cool (0) Movement Treading (180) Ox1 Location -8/Materials Parts ------- > --- POWER (1) -------- Light Nuclear Core > --- PROPULSION (3) --- Light Treads Improved Aluminum Leg > --- UTILITY (5) ------ Large Storage Unit Large Storage Unit > --- WEAPON (2) ------- Axe > --- INVENTORY (16) --- Light Ion Engine Nuclear Core Nuclear Core Fission Core Medium Storage Unit Medium Storage Unit Light Assault Rifle Grenade Launcher Peak State ------------ > --- POWER ------------ Light Nuclear Core > --- PROPULSION ------- Aluminum Leg Aluminum Leg Aluminum Leg > --- UTILITY ---------- Medium Storage Unit Medium Storage Unit Large Storage Unit > --- WEAPON ----------- Light Assault Rifle Makeshift Shrapnel Gun > --- INVENTORY -------- Light Ion Engine Nuclear Core Nuclear Core Fission Core Aluminum Leg Grenade Launcher Axe [Rating: 15] Favorites ----------- Power Light Nuclear Core Engine Ion Engine Power Core Light Nuclear Core Propulsion Aluminum Leg Treads Light Treads Leg Aluminum Leg Utility Medium Storage Unit Storage Medium Storage Unit Weapon EM Pulse Gun Energy Gun EM Pulse Gun Energy Cannon Heavy Particle Cannon Ballistic Gun Makeshift Shrapnel Gun Launcher Grenade Launcher Slashing Weapon Axe Build | -11 -10 -10 -10 -9 -8 ------- Run | Scr Mat Min Exi Min Mat Slots Evolved 4 | . . . . . 4 Power . | . . . . . . Propulsion 1 | . . . . . 1 Utility 3 | . . . . . 3 Weapon . | . . . . . . Parts Attached 38 | 6 8 5 . 4 15 Power 6 | 1 3 1 . . 1 Engine 4 | 1 3 . . . . Core 2 | . . 1 . . 1 Reactor . | . . . . . . Propulsion 11 | 2 1 3 . . 5 Treads 1 | . . . . . 1 Leg 10 | 2 1 3 . . 4 Wheel . | . . . . . . Hover . | . . . . . . Flight . | . . . . . . Utility 5 | 1 2 . . . 2 Device . | . . . . . . Storage 5 | 1 2 . . . 2 Processor . | . . . . . . Hackware . | . . . . . . Protection . | . . . . . . Artifact . | . . . . . . Weapon 16 | 2 2 1 . 4 7 Energy Gun 1 | 1 . . . . . Energy Cannon 1 | . . . . . 1 Ballistic Gun 9 | 1 2 1 . 2 3 Ballistic Cannon . | . . . . . . Launcher 2 | . . . . 2 . Special Weapon . | . . . . . . Impact Weapon . | . . . . . . Slashing Weapon 3 | . . . . . 3 Piercing Weapon . | . . . . . . Special Melee Weapon . | . . . . . . Unidentified Prototypes . | . . . . . . Parts Lost 9 | . . . . 1 8 Power . | . . . . . . Propulsion 5 | . . . . . 5 Utility . | . . . . . . Weapon 4 | . . . . 1 3 Highest Loss Streak 5 | . . . . 1 5 Average Slot Usage (%) 87 | . 86 100 100 99 65 Engine 4 | . 13 11 . . . Core 7 | . . 2 14 14 9 Leg 25 | . 25 28 28 28 20 Storage 23 | . 18 28 28 28 18 Energy Gun 8 | . 14 14 14 4 . Energy Cannon 1 | . . . . . 4 Ballistic Gun 12 | . 13 14 14 11 8 Launcher 1 | . . . . 11 . Slashing Weapon 1 | . . . . . 4 Naked Turns . | . . . . . . Heaviest Build 46 | 12 24 25 25 26 46 Greatest Support 30 | 20 20 20 20 20 30 Greatest Overweight (x) 3 | . 2 1 1 1 3 Average Overweight (x) . | . . 1 1 1 . Largest Inventory Capacity 18 | 6 12 12 12 12 18 Average Capacity 12 | 5 8 12 12 12 15 Most Carried 9 | 4 7 8 8 8 9 Average Carried 6 | 2 5 6 8 7 7 Final Capacity 16 | 6 12 12 12 12 16 Final Carried 8 | 4 7 8 8 7 8 Class Distribution -------------------- 90% | Mutant 9% | Scavenger-Mutant Dominant Class ---------------- Mutant | -10/Materials Mutant | -10/Mines Mutant | -10/Exiles Mutant | -9/Mines Mutant | -8/Materials Resources | -11 -10 -10 -10 -9 -8 ----------- Run | Scr Mat Min Exi Min Mat Matter Collected 920 | 237 73 160 . 145 305 Remotely . | . . . . . . Salvage Created 1225 | . 267 202 . 110 646 Parts 70 | . 17 12 . 7 34 Haulers Intercepted 2 | . 1 . . . 1 Recyclers Shooed . | . . . . . . Parts Field Recycled . | . . . . . . Retrieved Matter . | . . . . . . Parts Self-Destructed . | . . . . . . Prevented . | . . . . . . Kills | -11 -10 -10 -10 -9 -8 ------- Run | Scr Mat Min Exi Min Mat Combat Hostiles Destroyed 40 | . 6 6 . 11 17 Melee 5 | . . . . . 5 Guns 25 | . 6 6 . 5 8 Cannons 4 | . . . . . 4 AOE 6 | . . . . 6 . Classes Destroyed 8 | . 3 . . 2 3 Builder 1 | . . . . 1 . Hauler 2 | . 1 . . . 1 Operator 1 | . . . . . 1 Swarmer 11 | . 2 2 . 3 4 Grunt 18 | . 4 4 . . 10 Duelist 1 | . . . . . 1 Sentry 2 | . . . . . 2 Assembled 8 | . . . . 8 . Best Kill Streak 7 | . 4 2 . 7 5 Combat Bots Only 7 | . 4 2 . 7 5 Max Kills in Single Turn 3 | . 1 1 . 3 2 Gunslinging . | . . . . . . Exploded 2 | . . . . 2 . Melee 1 | . . . . . 1 Uniques/NPCs Destroyed . | . . . . . . Combat | -11 -10 -10 -10 -9 -8 -------- Run | Scr Mat Min Exi Min Mat Damage Taken 1547 | . 290 108 . 341 808 Core 411 | . 94 51 . 47 219 Absorbed by Shields . | . . . . . . Core Remaining (%) 61 | 100 . . . 23 . Volleys Fired 98 | . 20 12 . 22 44 Largest 2 | . 2 2 . 2 2 Hottest 95 | . 60 64 . 70 95 Shots Fired 173 | . 40 24 . 30 79 Gun 152 | . 40 24 . 22 66 Cannon 13 | . . . . . 13 Launcher 8 | . . . . 8 . Special . | . . . . . . Kinetic 104 | . 20 12 . 6 66 Thermal 13 | . . . . . 13 Explosive 8 | . . . . 8 . Electromagnetic 48 | . 20 12 . 16 . Robot Hit Streak 23 | . 11 23 . 14 14 Robot Miss Streak 5 | . 2 1 . 5 2 Penetration Max . | . . . . . . Secondary Targets 3 | . 2 . . . 1 Max Gunslinging Chain 1 | . 1 . . . 1 Shots Hit Robots 155 | . 30 18 . 23 84 Core Hits 98 | . 14 13 . 20 51 Critical Hits 3 | . . . . . 3 Critical Kills 2 | . . . . . 2 Critical Parts Destroyed 1 | . . . . . 1 Melee Attacks 26 | . . . . . 26 Impact . | . . . . . . Slashing 26 | . . . . . 26 Piercing . | . . . . . . Sneak Attacks 3 | . . . . . 3 Combat Hostiles . | . . . . . . Follow-up Attacks . | . . . . . . Damage Inflicted 3146 | . 292 307 . 702 1845 Guns 1827 | . 292 307 . 251 977 Cannons 275 | . . . . . 275 Explosions 451 | . . . . 451 . Melee 593 | . . . . . 593 Ramming . | . . . . . . Kinetic 1346 | . 93 193 . 83 977 Thermal 275 | . . . . . 275 Explosive 451 | . . . . 451 . Electromagnetic 481 | . 199 114 . 168 . Impact . | . . . . . . Slashing 593 | . . . . . 593 Piercing . | . . . . . . Highest Corruption . | . . . . . . Average Corruption . | . . . . . . Corruption Purged . | . . . . . . Overload Shots . | . . . . . . Overflow Damage 13 | . . . . 13 . Projectiles . | . . . . . . Explosions 13 | . . . . 13 . Melee . | . . . . . . Knockbacks . | . . . . . . Impact . | . . . . . . Kinetic . | . . . . . . Secondary . | . . . . . . Self-Inflicted Damage 131 | . . . . 131 . Shots 6 | . . . . 6 . Rammed . | . . . . . . Targets Rammed . | . . . . . . Kicked . | . . . . . . Crushed . | . . . . . . Highest Temperature 274 | . 94 105 . 79 274 Average Temperature 49 | . 38 37 . 28 75 Received Heat Transfer 685 | . 147 66 . 40 432 Siege Activations . | . . . . . . Robots Corrupted . | . . . . . . Combat Hostiles . | . . . . . . Parts Fried . | . . . . . . Impact Corruptions . | . . . . . . Robots Melted . | . . . . . . Combat Hostiles . | . . . . . . Parts Melted . | . . . . . . Heat Transferred 407 | . . . . . 407 Parts Sabotaged . | . . . . . . Parts Stolen . | . . . . . . Parts Stripped . | . . . . . . Power Chain Reactions . | . . . . . . Missiles Intercepted . | . . . . . . Alert | -11 -10 -10 -10 -9 -8 ------- Run | Scr Mat Min Exi Min Mat Peak Influence 199 | . 194 100 . 85 199 Average Influence 53 | . 63 23 . 64 68 Maximum Alert Level . | . . . . . . Low Security (%) 100 | 100 100 100 . 100 100 Level 1 . | . . . . . . Level 2 . | . . . . . . Level 3 . | . . . . . . Level 4 . | . . . . . . Level 5 . | . . . . . . High Security . | . . . . . . Max Security . | . . . . . . Squads Dispatched 4 | . 1 . . . 3 Investigation 2 | . 1 . . . 1 Extermination . | . . . . . . Reinforcement 2 | . . . . . 2 Assault . | . . . . . . Garrison . | . . . . . . Intercept . | . . . . . . Construction Impeded . | . . . . . . Haulers Reinforced . | . . . . . . Stealth | -11 -10 -10 -10 -9 -8 --------- Run | Scr Mat Min Exi Min Mat Distress Signals 5 | . . . . 1 4 Communications Jammed . | . . . . . . Distress Signals . | . . . . . . Times Spotted 77 | . 14 6 . 17 40 Peak Tracking Total 7 | . 7 3 . 4 6 Tactical Retreats 9 | . 1 . . 1 7 Traps | -11 -10 -10 -10 -9 -8 ------- Run | Scr Mat Min Exi Min Mat Traps Triggered 3 | . 2 . . . 1 Indirectly . | . . . . . . Trap Hack Attempts . | . . . . . . Triggered . | . . . . . . Disarmed . | . . . . . . Reprogrammed . | . . . . . . Reused . | . . . . . . Traps Extracted . | . . . . . . Installed . | . . . . . . Triggered . | . . . . . . Machines | -11 -10 -10 -10 -9 -8 ---------- Run | Scr Mat Min Exi Min Mat Machines Disabled . | . . . . . . Max in Single Turn . | . . . . . . Machines Sabotaged . | . . . . . . Garrisons Compromised . | . . . . . . Overloaded Fab Kills . | . . . . . . Fab Network Shutdowns . | . . . . . . Hacking | -11 -10 -10 -10 -9 -8 --------- Run | Scr Mat Min Exi Min Mat Machines Accessed 9 | . 4 . . . 5 Terminals 9 | . 4 . . . 5 Fabricators . | . . . . . . Repair Stations . | . . . . . . Recycling Units . | . . . . . . Scanalyzers . | . . . . . . Garrison Access . | . . . . . . Total Hacks 26 | . 11 . . . 15 Successful 13 | . 7 . . . 6 Failed 13 | . 4 . . . 9 Catastrophic 7 | . 1 . . . 6 Database Lockouts . | . . . . . . Manual 25 | . 10 . . . 15 Terminals 26 | . 11 . . . 15 Fabricators . | . . . . . . Repair Stations . | . . . . . . Recycling Units . | . . . . . . Scanalyzers . | . . . . . . Garrison Access . | . . . . . . Terminal Hacks 8 | . 4 . . . 4 Level Access Points 1 | . 1 . . . . Branch Access Points 1 | . 1 . . . . Unreport Threat 2 | . . . . . 2 Maintenance Status 1 | . 1 . . . . Recall Investigation 1 | . 1 . . . . Registered Components 1 | . . . . . 1 Registered Prototypes 1 | . . . . . 1 Fabricator Hacks . | . . . . . . Repair Station Hacks . | . . . . . . Recycling Unit Hacks . | . . . . . . Scanalyzer . | . . . . . . Garrison Access Hacks . | . . . . . . Unauthorized Hacks 13 | . 9 . . . 4 Terminals 5 | . 3 . . . 2 Assimilate 1 | . . . . . 1 Botnet 4 | . 3 . . . 1 Fabricators . | . . . . . . Repair Stations . | . . . . . . Recycling Units . | . . . . . . Scanalyzers . | . . . . . . Garrison Access . | . . . . . . Data Cores Recovered . | . . . . . . Used . | . . . . . . Hacking Detections 8 | . 4 . . . 4 Full Trace Events . | . . . . . . Feedback Events . | . . . . . . Feedback Blocked . | . . . . . . Robot Schematics Acquired . | . . . . . . Robots Built . | . . . . . . Matter . | . . . . . . Time . | . . . . . . Total Robot Build Rating . | . . . . . . Part Schematics Acquired . | . . . . . . Parts Built . | . . . . . . Matter . | . . . . . . Time . | . . . . . . Total Part Build Rating . | . . . . . . Parts Repaired . | . . . . . . Time . | . . . . . . Parts Recycled . | . . . . . . Recycled Matter . | . . . . . . Retrieved Matter . | . . . . . . Retrieved Components . | . . . . . . Parts Scanalyzed . | . . . . . . Part Schematics Acquired . | . . . . . . Parts Damaged . | . . . . . . Bothacking | -11 -10 -10 -10 -9 -8 ------------ Run | Scr Mat Min Exi Min Mat Used RIF Installer . | . . . . . . Robots Hacked . | . . . . . . Non-combat . | . . . . . . Combat . | . . . . . . Robot Hacks Applied . | . . . . . . Relay Couplers Released . | . . . . . . Robots Rewired . | . . . . . . Allies Hacked . | . . . . . . Hacks Repelled . | . . . . . . Allies | -11 -10 -10 -10 -9 -8 -------- Run | Scr Mat Min Exi Min Mat Total Allies 4 | . . 1 . 3 . Largest Group 3 | . . 1 . 3 3 Highest-Rated Group 40 | . . 31 . 40 40 Highest-Rated Ally 31 | . . 31 . 16 16 Total Orders . | . . . . . . Ally Attacks 49 | . . 1 . 9 39 Total Damage 523 | . . 20 . 62 441 Kills 7 | . . 1 . 2 4 Allies Corrupted . | . . . . . . Allies Melted . | . . . . . . Intel | -11 -10 -10 -10 -9 -8 ------- Run | Scr Mat Min Exi Min Mat Robot Analysis Total . | . . . . . . Derelict Logs Recovered 3 | . . 3 . . . Drone Launches . | . . . . . . Drone Recoveries . | . . . . . . Exploration | -11 -10 -10 -10 -9 -8 ------------- Run | Scr Mat Min Exi Min Mat Turns Passed 3447 | 54 535 733 673 455 997 Spaces Moved 1978 | 37 343 440 446 266 446 Core 4 | 4 . . . . . Treads 37 | . . . . . 37 Legs 1937 | 33 343 440 446 266 409 Wheels . | . . . . . . Hover . | . . . . . . Flight . | . . . . . . Fastest Speed 50 | 50 120 150 150 150 120 Average Speed 146 | 112 133 150 150 150 148 Slowest Speed 210 | 120 180 150 150 150 210 Overloaded Moves . | . . . . . . Propulsion Burnouts . | . . . . . . Robots Hopped . | . . . . . . Cave-ins Triggered . | . . . . . . Exploration Rate (%) 56 | 3 54 90 72 73 47 Regions Visited 5 Branch Regions 3 Pre-discovered Areas . | . . . . . . Known Exits Taken 2 | . 1 1 . . . Unknown Exits Taken 3 | 1 . . 1 1 . Scrap Searched 2 | . . 1 . 1 . Spaces Dug 12 | . . . . . 12 Terrain Destroyed 73 | . . . . 60 13 Melee 12 | . . . . . 12 Projectile 1 | . . . . . 1 AOE 60 | . . . . 60 . Actions | -11 -10 -10 -10 -9 -8 --------- Run | Scr Mat Min Exi Min Mat Total 2318 | 46 381 488 451 291 661 Wait 160 | . 6 30 . . 124 Move 1973 | 36 342 439 445 265 446 Hop . | . . . . . . Pick Up 12 | 4 3 . 3 . 2 Fast Attach 17 | 6 3 2 . . 6 Attach 6 | . . 1 . 1 4 Detach 3 | . . . . . 3 Swap 15 | . 5 2 . 3 5 Drop 8 | . 2 2 3 . 1 Fire 98 | . 20 12 . 22 44 Melee 26 | . . . . . 26 Ram . | . . . . . . Kick . | . . . . . . Crush . | . . . . . . Escape Stasis . | . . . . . . Rewire . | . . . . . . Trap . | . . . . . . Miscellaneous . | . . . . . . Route ------- -11/Scrapyard -10/Materials (discovered 5 exits: *Mat x3 / *Min x2) -10/Mines (discovered 3 exits: *Mat x2 / *Exi) -10/Exiles (discovered 2 exits: [*Min x2]) -9/Mines -8/Materials (discovered 1 exit: *Fac) History --------- Turn | Location | Event 19 | -11/Scrapyard | Discovered new exit (range 15) 55 | -11/Scrapyard | Entered Materials 99 | -10/Materials | Identified exit to Materials 132 | -10/Materials | Identified exit to Mines 314 | -10/Materials | Build established: Mutant 590 | -10/Materials | Entered Mines 801 | -10/Mines | A weapon hastily lodged in a ceiling crevice suddenly fell to the ground 809 | -10/Mines | Learned location of 1 exit from Materials 814 | -10/Mines | Received a Rocket Launcher from a helpful Derelict 814 | -10/Mines | Discovered exit to Materials (range 6) 859 | -10/Mines | Received a Mining Laser from a helpful Derelict 1019 | -10/Mines | Learned Materials terminal intel 1105 | -10/Mines | Identified exit to Exiles 1200 | -10/Mines | Discovered exit to Materials (range 7) 1222 | -10/Mines | Core integrity fell below 50% 1315 | -10/Mines | Deemed a non-threat by the Exiles lab entrance 1323 | -10/Mines | Entered Exiles 1323 | -10/Exiles | Found Exiles lab abandoned 1345 | -10/Exiles | Discovered new exit (range 15) 1978 | -10/Exiles | Discovered new exit (range 11) 1996 | -10/Exiles | Entered Mines 1997 | -9/Mines | Assembled infested the area 2002 | -9/Mines | Assisted by a Guerilla fighting off Assembled 2178 | -9/Mines | Destroyed 7 combat bots 2290 | -9/Mines | Assisted by bots powering up and referring to "LRC-V3" 2445 | -9/Mines | Discovered new exit (range 5) 2451 | -9/Mines | Entered Materials 2451 | -8/Materials | Accompanied by 3 allies 2451 | -8/Materials | Evolved 4 slots: Propulsion x1, Utility x3 2452 | -8/Materials | Identified exit to Factory 2453 | -8/Materials | Loaded intel: 12 terminal locations 2749 | -8/Materials | Build established: Scavenger-Mutant 2977 | -8/Materials | Lost 5 parts (3n2w) 3073 | -8/Materials | Build established: Mutant 3448 | -8/Materials | Self-destructed Last Messages --------------- 03377_ K-01 Serf collects debris. 03380_ G-47 Trooper destroyed. 03381_ K-01 Serf collects debris. 03381_ R-06 Scavenger collects Lgt. Ion Engine. 03381_ K-01 Serf collects debris. 03383_ U-05 Engineer lays Concrete. 03384_ K-01 Serf collects debris. 03386_ Acquired 9 matter. 03387_ K-01 Serf collects debris. 03390_ Acquired 20 matter. 03392_ K-01 Serf collects debris. 03394_ Sneak attack on A-02 Transporter. 03394_ A-02 Transporter suffers critical hit. 03394_ A-02 Transporter destroyed. 03395_ K-01 Serf collects debris. 03397_ Acquired 8 matter. 03413_ Sneak attack on A-02 Transporter. 03416_ K-01 Serf collects debris. 03444_ Connecting with Terminal... 03446_ Hvy. Particle Cannon destroyed. Map ----- +----------------------------------------------------+ | ?????????????????????# #???????##! # # | | ?????????????????????# * ################# | | ?????????????????????# # # # | | ????????"T"??????????# # !!! # # | | ????????"""??????????# # !!! # """ + | | ?????????????????????# #! !!! # """ # | | ?????????????????????# # # """ # | | ?????????????????????# # """"" # # % # | | ?????????????????????# # """"" ######## # | | ?????????????# ??????# %+ """"" # " ???# # | | ????????????## ????# % # #"G"???# % # | | ????????????# ########+########+###" "####% # | | ????????????# %[ % !%!= # | | ????????????# *%! =!! # | | ?????!??????# = # | | ????????????# ####### ##############+####### | | ????????????####????????# k# ?????????# # | | ????????????????????????#k # ?????????# " # | | ????????????????????????# + ?????????# T [#""" | | ????????????????????????# # ????????# " #""" | | ????????????????????????# u# "???????# #""" | | ????????????????????????# #? "??????#! #""" | | ???????????????????????## #? ?????######## | | ???????????????????????#T #?? ??????????##### | | ????????????????""?????## #??? ?????????????? | | ????????????????"T??????#@ #?????##?????????????? | | ????????????????""??????# u ???????????????? | | ????????????????????????# a ??????????? | | ????????????????????????# g g ?????????? | | ????????????????????????# ###+########?????????? | | ????????????????????????# #????????????????????? | | ????????????????????????# #????????????????????? | | ????????????????????????# #????????????????????? | | ????????????????????????# #????????????????????? | | ????????????????????????#a #????????????????????? | | ???????????????????????? #????????????????????? | | ????????????????????????# #????????????????????? | | ????????????????????????# #????????????????????? | | ????????????????????????? #????????????????????? | | ????????????????????????? #????????????????????? | | ????????????????????????? ?????????????????????? | | ?????????????????????????????????????????????????? | | ?????????????????????????????????????????????????? | | ?????????????????????????????????????????????????? | | ?????????????????????????????????????????????????? | | ?????????????????????????????????????????????????? | | ?????????????????????????????????????????????????? | | ?????????????????????????????????????????????????? | | ??????????????????????????????????????????????T??? | | ?????????????????????????????????????????????????? | +----------------------------------------------------+ Best States ------------- Heat Dissipation 31 Energy Generation 14 Energy Capacity 250 Matter Stores 300 Matter Capacity 300 Sight Range 16 Terrain Scan Density 10 Resistance: KI 20 Resistance: TH 20 Resistance: EX 20 Resistance: EM 20 Resistance: I 20 Resistance: S 20 Resistance: P 20 Evasion (%) 40 Recoil Reduction 1 Offensive Hacking 10 Item Schematics ----------------- None Robot Schematics ------------------ None Fabricated ------------ Nothing Alien Tech Used ----------------- None Achievements -------------- None Challenges ------------ None Game ------ Seed AccelerationWarpEngine Manual? 0 Play Time 00:25:23 Cumulative 33.4 hours Start 2020.01.19 @ 15:48:02 End 2020.01.19 @ 16:10:52 Sessions 1 Manual Loads 0 Difficulty Adventurer Special Mode None Game No. 49 Rogue 1 Adventurer 48 Explorer 0 Win Type - Total 0 Types 0/0/0/0/0/0/0 Lore% 25 Gallery% 40 Achievement% 31 Wizard Run 0 Options --------- ASCII 0 Keyboard 0 Movement Numpad Keybinds 0 Fullscreen 1 Font 18/SmallcapsGlow Map View 76x50 Tactical HUD 1 Map Filters NONE Filters NONE Steam 1 RUN: 1924a4c4-b0e1-46c8-aa76-4f093e01ad66